[Event "GER-ch Youth-U10 2022"]
[Site "Willingen"]
[Date "2022.06.05"]
[Round "1.25"]
[White "Rohatgi, Kushagra"]
[Black "Meurer, Knut"]
[Result "1-0"]
[ECO "B74"]
[WhiteElo "1222"]
[BlackElo "998"]
[Annotator "NA RC COMBH"]
[PlyCount "77"]
[EventDate "2022.06.05"]
[EventType "swiss"]
[EventRounds "11"]
[EventCountry "GER"]
[SourceTitle "playchess.com"]
[Source "ChessBase"]
[SourceQuality "1"]
[TimeControl "40/4500+30:900+30"]

1. e4 {[%emt 0:00:09]} c5 {[%emt 0:00:07]} 2. Nf3 {[%emt 0:00:09]} d6 {[%emt 0:00:04]} 3. d4 {[%emt 0:00:14]} cxd4 {[%emt 0:00:04]} 4. Nxd4 {[%emt 0:00:16]} Nc6 {[%emt 0:00:04]} 5. Nc3 {[%emt 0:00:39]} Nf6 {[%emt 0:00:08]} 6. Be2 {[%emt 0:00:48]} g6 {[%emt 0:00:08]} 7. Be3 {[%emt 0:01:01]} Bg7 {[%emt 0:00:25]} 8. O-O {[%emt 0:01:09]} O-O {[%emt 0:00:04]} 9. Nb3 {[%emt 0:03:49]} b5 {[%emt 0:01:30]} 10. Bxb5 {[%emt 0:05:46]} Qc7 {[%emt 0:01:01]} 11. h3 {[%emt 0:06:50]} a6 {[%emt 0:00:10]} 12. Be2 {[%emt 0:01:22]} Bb7 {[%emt 0:00:39]} 13. Bd3 {[%emt 0:05:43]} Nb4 {[%emt 0:00:32]} 14. a3 {[%emt 0:02:36]} Nxd3 {[%emt 0:00:09]} 15. Qxd3 {[%emt 0:02:33]} Bc6 {[%emt 0:01:16]} 16. Rfe1 {[%emt 0:02:32]} Qb7 {[%emt 0:00:46]} 17. Na5 {[%emt 0:02:43]} Qc7 {[%emt 0:00:56]} 18. Nxc6 {[%emt 0:03:12]} Qxc6 {[%emt 0:00:02]} 19. Rad1 {[%emt 0:01:21]} Rab8 {[%emt 0:01:00]} 20. b3 {[%emt 0:06:01]} Nd7 {[%emt 0:00:47]} 21. Nd5 {[%emt 0:03:21]} Ne5 {[%emt 0:00:30]} 22. Nxe7+ {[%emt 0:00:58]} Kh8 {[%emt 0:01:11]} 23. Nxc6 {[%emt 0:00:55]} Nxd3 {[%emt 0:00:18]} 24. Rxd3 {[%emt 0:02:21]} Rbc8 {[%emt 0:00:12]} 25. Nd4 {[%emt 0:02:05]} Be5 {[%emt 0:00:40]} 26. Nf3 {[%emt 0:04:22]} Bc3 {[%emt 0:00:52]} 27. Rxc3 {[%emt 0:00:30]} Rxc3 {[%emt 0:00:15]} 28. Bd4+ {[%emt 0:00:10]} Kg8 {[%emt 0:00:12]} 29. Bxc3 {[%emt 0:00:13]} Rc8 {[%emt 0:00:05]} 30. Bf6 {[%emt 0:01:08]} Rxc2 {[%emt 0:00:23]} 31. Rd1 {[%emt 0:00:36]} Rc6 {[%emt 0:00:10]} 32. Bg5 {[%emt 0:01:18]} Rc5 {[%emt 0:00:25]} 33. Be3 {[%emt 0:02:52]} Rc6 {[%emt 0:00:19]} 34. a4 {[%emt 0:00:32]} Rc3 {[%emt 0:00:26]} 35. b4 {[%emt 0:00:54]} Rc4 {[%emt 0:00:26]} 36. b5 {[%emt 0:00:48]} Rxa4 {[%emt 0:00:42]} 37. b6 {[%emt 0:00:22]} Rb4 {[%emt 0:00:11]} 38. Ra1 {[%emt 0:00:37]} Rxe4 {[%emt 0:00:37]} 39. Rb1 {[%emt 0:00:26]} 1-0

[Event "GER-ch Youth-U10 2022"]
[Site "Willingen"]
[Date "2022.06.05"]
[Round "1.26"]
[White "Andersen, Jonatan M"]
[Black "Sheng, Ming"]
[Result "0-1"]
[ECO "B34"]
[WhiteElo "1857"]
[BlackElo "1258"]
[Annotator "NA RC COMBH"]
[PlyCount "156"]
[EventDate "2022.06.05"]
[EventType "swiss"]
[EventRounds "11"]
[EventCountry "GER"]
[SourceTitle "playchess.com"]
[Source "ChessBase"]
[SourceQuality "1"]
[TimeControl "40/4500+30:900+30"]

1. e4 {[%emt 0:00:03]} c5 {[%emt 0:00:04]} 2. Nf3 {[%emt 0:00:04]} Nc6 {[%emt 0:00:12]} 3. d4 {[%emt 0:00:07]} cxd4 {[%emt 0:00:06]} 4. Nxd4 {[%emt 0:00:06]} Nf6 {[%emt 0:00:12]} 5. Nc3 {[%emt 0:00:10]} g6 {[%emt 0:00:07]} 6. Bd3 {[%emt 0:00:19]} Nxd4 {[%emt 0:00:36]} 7. Bg5 {[%emt 0:00:25]} Bg7 {[%emt 0:00:06]} 8. O-O {[%emt 0:00:10]} d6 {[%emt 0:00:18]} 9. Bc4 {[%emt 0:00:41]} Ne6 {[%emt 0:00:41]} 10. Bxe6 {[%emt 0:00:07]} Bxe6 {[%emt 0:00:03]} 11. Qf3 {[%emt 0:00:23]} Qd7 {[%emt 0:00:29]} 12. h3 {[%emt 0:00:09]} O-O {[%emt 0:00:17]} 13. Rad1 {[%emt 0:00:03]} Qc7 {[%emt 0:01:17]} 14. Rfe1 {[%emt 0:00:31]} Rfe8 {[%emt 0:00:37]} 15. Rc1 {[%emt 0:01:05]} h6 {[%emt 0:00:36]} 16. Bxf6 {[%emt 0:00:16]} Bxf6 {[%emt 0:00:07]} 17. Nb5 {[%emt 0:00:34]} Qc6 {[%emt 0:00:28]} 18. e5 {[%emt 0:02:19]} Qxb5 {[%emt 0:01:46]} 19. exf6 {[%emt 0:00:13]} exf6 {[%emt 0:00:48]} 20. Qxf6 {[%emt 0:00:12]} Qf5 {[%emt 0:00:17]} 21. Qd4 {[%emt 0:00:28]} Qd5 {[%emt 0:01:22]} 22. Qxd5 {[%emt 0:00:29]} Bxd5 {[%emt 0:00:11]} 23. Red1 {[%emt 0:00:10]} Be6 {[%emt 0:00:49]} 24. Rxd6 {[%emt 0:00:10]} Rad8 {[%emt 0:00:06]} 25. Rcd1 {[%emt 0:00:49]} Rxd6 {[%emt 0:00:13]} 26. Rxd6 {[%emt 0:00:06]} Kf8 {[%emt 0:00:18]} 27. b3 {[%emt 0:01:03]} Ke7 {[%emt 0:00:19]} 28. Rd1 {[%emt 0:00:13]} Rd8 {[%emt 0:00:04]} 29. Rc1 {[%emt 0:00:34]} Rd2 {[%emt 0:00:29]} 30. a3 {[%emt 0:00:25]} b5 {[%emt 0:00:28]} 31. Kf1 {[%emt 0:00:12]} Rd4 {[%emt 0:00:20]} 32. f3 {[%emt 0:00:25]} a5 {[%emt 0:00:12]} 33. Ke2 {[%emt 0:00:20]} Kd6 {[%emt 0:00:29]} 34. Ke3 {[%emt 0:00:23]} Rd5 {[%emt 0:00:21]} 35. g4 {[%emt 0:00:26]} f5 {[%emt 0:00:34]} 36. b4 {[%emt 0:00:49]} axb4 {[%emt 0:00:24]} 37. axb4 {[%emt 0:00:13]} Ke5 {[%emt 0:01:02]} 38. Re1 {[%emt 0:01:26]} f4+ {[%emt 0:00:43]} 39. Kf2+ {[%emt 0:00:18]} Kf6 {[%emt 0:00:07]} 40. c3 {[%emt 0:00:33]} Re5 {[%emt 0:00:12]} 41. Ra1 $19 {[%emt 0:17:09]} Re3 {[%emt 0:16:46]} 42. Ra5 {[%emt 0:00:15]} Bc4 {[%emt 0:00:10]} 43. Ra6+ {[%emt 0:00:21]} Re6 {[%emt 0:00:20]} 44. Ra3 {[%emt 0:00:21]} Kg5 {[%emt 0:00:53]} 45. Ra7 {[%emt 0:01:28]} Re3 {[%emt 0:00:44]} 46. Ra3 {[%emt 0:00:21]} Re2+ {[%emt 0:00:23]} 47. Kg1 {[%emt 0:00:08]} Ra2 {[%emt 0:00:08]} 48. Rxa2 {[%emt 0:00:05]} Bxa2 {[%emt 0:00:06]} 49. Kf2 {[%emt 0:00:06]} Bc4 {[%emt 0:00:17]} 50. Kg2 {[%emt 0:00:20]} Kh4 {[%emt 0:00:22]} 51. Kh2 {[%emt 0:00:27]} Be2 {[%emt 0:00:06]} 52. Kg2 {[%emt 0:00:09]} g5 {[%emt 0:00:09]} 53. Kf2 {[%emt 0:00:43]} Bc4 {[%emt 0:00:10]} 54. Kg2 {[%emt 0:00:10]} Bd5 {[%emt 0:00:04]} 55. Kh2 {[%emt 0:00:22]} Bxf3 {[%emt 0:00:30]} 56. Kg1 {[%emt 0:00:21]} Kxh3 {[%emt 0:00:39]} 57. Kf2 {[%emt 0:00:07]} Kxg4 {[%emt 0:00:09]} 58. Ke1 {[%emt 0:00:15]} h5 {[%emt 0:00:07]} 59. c4 {[%emt 0:00:05]} bxc4 {[%emt 0:00:04]} 60. b5 {[%emt 0:00:06]} c3 {[%emt 0:00:48]} 61. b6 {[%emt 0:01:24]} Kg3 {[%emt 0:01:32]} 62. b7 {[%emt 0:00:06]} Bxb7 {[%emt 0:00:02]} 63. Kd1 {[%emt 0:00:12]} f3 {[%emt 0:00:14]} 64. Kc2 {[%emt 0:00:06]} f2 {[%emt 0:00:10]} 65. Kxc3 {[%emt 0:00:05]} f1=Q {[%emt 0:00:19]} 66. Kd4 {[%emt 0:00:03]} Qf4+ {[%emt 0:00:24]} 67. Kc5 {[%emt 0:03:18]} Qe4 {[%emt 0:00:59]} 68. Kd6 {[%emt 0:00:06]} Qd5+ {[%emt 0:00:16]} 69. Ke7 {[%emt 0:00:27]} Bc8 {[%emt 0:00:12]} 70. Kf6 {[%emt 0:00:07]} Qf5+ {[%emt 0:00:13]} 71. Ke7 {[%emt 0:00:21]} Qe6+ {[%emt 0:00:05]} 72. Kf8 {[%emt 0:02:11]} Bd7 {[%emt 0:01:16]} 73. Kg7 {[%emt 0:00:06]} Be8 {[%emt 0:00:33]} 74. Kh8 {[%emt 0:00:21]} Bg6 {[%emt 0:00:22]} 75. Kg7 {[%emt 0:00:15]} Qf7+ {[%emt 0:00:04]} 76. Kh6 {[%emt 0:03:10]} g4 {[%emt 0:01:00]} 77. Kg5 {[%emt 0:00:10]} Bf5 {[%emt 0:00:15]} 78. Kh6 {[%emt 0:00:29]} Qg6# {[%emt 0:00:48]} 0-1

[Event "GER-ch Youth-U10 2022"]
[Site "Willingen"]
[Date "2022.06.05"]
[Round "1.27"]
[White "Rudolph, Simon"]
[Black "Wetzig, Karl Anton"]
[Result "1-0"]
[ECO "B28"]
[WhiteElo "1361"]
[BlackElo "884"]
[Annotator "NA RC COMBH"]
[PlyCount "119"]
[EventDate "2022.06.05"]
[EventType "swiss"]
[EventRounds "11"]
[EventCountry "GER"]
[SourceTitle "playchess.com"]
[Source "ChessBase"]
[SourceQuality "1"]
[TimeControl "40/4500+30:900+30"]

1. e4 {[%emt 0:00:04]} c5 {[%emt 0:00:13]} 2. Nf3 {[%emt 0:00:07]} Nc6 {[%emt 0:00:35]} 3. d4 {[%emt 0:00:05]} cxd4 {[%emt 0:00:07]} 4. Nxd4 {[%emt 0:00:09]} a6 {[%emt 0:00:47]} 5. Nc3 {[%emt 0:00:44]} e5 {[%emt 0:00:49]} 6. Nf3 {[%emt 0:00:04]} Bc5 {[%emt 0:00:26]} 7. Be2 {[%emt 0:00:26]} Nf6 {[%emt 0:00:24]} 8. Bg5 {[%emt 0:00:47]} Bb4 {[%emt 0:01:11]} 9. O-O {[%emt 0:00:22]} Bxc3 {[%emt 0:00:17]} 10. bxc3 {[%emt 0:00:07]} O-O {[%emt 0:00:34]} 11. Re1 {[%emt 0:02:02]} d6 {[%emt 0:00:28]} 12. Bc4 {[%emt 0:01:32]} h6 {[%emt 0:01:08]} 13. Be3 {[%emt 0:01:12]} b5 {[%emt 0:00:28]} 14. Bd3 {[%emt 0:00:38]} Bg4 {[%emt 0:00:52]} 15. h3 {[%emt 0:01:24]} Bxf3 {[%emt 0:00:48]} 16. Qxf3 {[%emt 0:00:26]} b4 {[%emt 0:01:45]} 17. Bd2 {[%emt 0:02:10]} d5 {[%emt 0:02:39]} 18. exd5 {[%emt 0:01:11]} Qxd5 {[%emt 0:01:25]} 19. Qxd5 {[%emt 0:00:06]} Nxd5 {[%emt 0:00:08]} 20. cxb4 {[%emt 0:00:19]} Ndxb4 {[%emt 0:00:48]} 21. Bxb4 {[%emt 0:00:32]} Nxb4 {[%emt 0:00:08]} 22. Rxe5 {[%emt 0:00:31]} f6 {[%emt 0:03:26]} 23. Re7 {[%emt 0:01:10]} Rfc8 {[%emt 0:01:37]} 24. Bf5 {[%emt 0:01:57]} Nxc2 {[%emt 0:01:44]} 25. Rc1 {[%emt 0:00:54]} Rc5 {[%emt 0:03:08]} 26. Bxc2 {[%emt 0:00:28]} Rac8 {[%emt 0:00:13]} 27. Bb3+ {[%emt 0:00:18]} Kf8 {[%emt 0:00:21]} 28. Rxc5 {[%emt 0:00:11]} Rxc5 {[%emt 0:00:14]} 29. Rf7+ {[%emt 0:00:20]} Ke8 {[%emt 0:00:26]} 30. Rxg7 {[%emt 0:00:04]} a5 {[%emt 0:00:53]} 31. a4 {[%emt 0:01:19]} Rc1+ {[%emt 0:00:28]} 32. Kh2 {[%emt 0:00:09]} Rb1 {[%emt 0:00:54]} 33. Bc4 {[%emt 0:00:29]} Rb4 {[%emt 0:00:12]} 34. Bb5+ {[%emt 0:00:08]} Kf8 {[%emt 0:01:16]} 35. Rb7 {[%emt 0:00:48]} Rb2 {[%emt 0:00:26]} 36. Rb8+ {[%emt 0:00:17]} Ke7 {[%emt 0:00:13]} 37. Ra8 {[%emt 0:00:39]} Rxf2 {[%emt 0:00:21]} 38. Rxa5 {[%emt 0:00:16]} Kd6 {[%emt 0:02:13]} 39. Ra6+ {[%emt 0:00:23]} Kc5 {[%emt 0:00:50]} 40. Re6 {[%emt 0:00:44]} Kd5 {[%emt 0:00:15]} 41. Re2 {[%emt 0:15:19]} Rxe2 {[%emt 0:00:18]} 42. Bxe2 {[%emt 0:00:09]} Kc5 {[%emt 0:16:02]} 43. Kg3 {[%emt 0:00:33]} Kb4 {[%emt 0:00:30]} 44. Bb5 {[%emt 0:00:05]} f5 {[%emt 0:00:20]} 45. Kf4 {[%emt 0:00:13]} h5 {[%emt 0:01:10]} 46. Kxf5 {[%emt 0:00:29]} h4 {[%emt 0:00:13]} 47. Kg5 {[%emt 0:00:18]} Kc5 {[%emt 0:00:48]} 48. Kxh4 {[%emt 0:00:07]} Kd6 {[%emt 0:00:22]} 49. Kg5 {[%emt 0:00:14]} Ke6 {[%emt 0:00:14]} 50. h4 {[%emt 0:00:28]} Ke7 {[%emt 0:00:00]} 51. h5 {[%emt 0:00:00]} Kf7 {[%emt 0:00:52]} 52. h6 {[%emt 0:00:00]} Kg8 {[%emt 0:00:05]} 53. Kg6 {[%emt 0:00:22]} Kh8 {[%emt 0:04:50]} 54. a5 {[%emt 0:00:00]} Kg8 {[%emt 0:01:20]} 55. a6 {[%emt 0:00:00]} Kf8 {[%emt 0:00:03]} 56. Kf6 {[%emt 0:00:05]} Kg8 {[%emt 0:00:16]} 57. a7 {[%emt 0:00:21]} Kh8 {[%emt 0:00:49]} 58. a8=Q+ {[%emt 0:00:26]} Kh7 {[%emt 0:00:21]} 59. Bd3+ {[%emt 0:00:11]} Kxh6 {[%emt 0:00:09]} 60. Qh8# {[%emt 0:00:30]} 1-0

[Event "GER-ch Youth-U10 2022"]
[Site "Willingen"]
[Date "2022.06.05"]
[Round "2.2"]
[White "Kateryniuk, Ivan"]
[Black "Fels, Mattis"]
[Result "1-0"]
[ECO "B01"]
[WhiteElo "1187"]
[BlackElo "1395"]
[Annotator "NA RC COMBH"]
[PlyCount "57"]
[EventDate "2022.06.05"]
[EventType "swiss"]
[EventRounds "11"]
[EventCountry "GER"]
[SourceTitle "playchess.com"]
[Source "ChessBase"]
[SourceQuality "1"]
[TimeControl "40/4500+30:900+30"]

1. e4 {[%emt 0:00:03]} d5 {[%emt 0:00:14]} 2. exd5 {[%emt 0:00:07]} Qxd5 {[%emt 0:00:20]} 3. Nc3 {[%emt 0:00:33]} Qa5 {[%emt 0:00:19]} 4. Bc4 {[%emt 0:00:48]} Nf6 {[%emt 0:01:51]} 5. d3 {[%emt 0:01:08]} Nc6 {[%emt 0:03:24]} 6. Bd2 {[%emt 0:05:41]} e5 {[%emt 0:08:25]} 7. Nd5 {[%emt 0:03:44]} Qc5 {[%emt 0:04:05]} 8. Nxc7+ {[%emt 0:01:38]} Kd8 {[%emt 0:02:56]} 9. Nxa8 {[%emt 0:01:19]} Ng4 {[%emt 0:00:15]} 10. Nh3 {[%emt 0:00:51]} Qd4 {[%emt 0:01:21]} 11. Bc3 {[%emt 0:01:15]} Qc5 {[%emt 0:00:10]} 12. Qd2 {[%emt 0:02:00]} Nd4 {[%emt 0:00:28]} 13. Bxd4 {[%emt 0:03:56]} Qxd4 {[%emt 0:00:10]} 14. Qa5+ {[%emt 0:01:15]} b6 {[%emt 0:00:07]} 15. Qd5+ {[%emt 0:00:08]} Qxd5 {[%emt 0:00:08]} 16. Bxd5 {[%emt 0:00:05]} Be7 {[%emt 0:00:07]} 17. Bf3 {[%emt 0:01:38]} f5 {[%emt 0:00:12]} 18. O-O-O {[%emt 0:00:53]} Rf8 {[%emt 0:00:11]} 19. Rhe1 {[%emt 0:03:00]} h6 {[%emt 0:00:09]} 20. Re2 {[%emt 0:01:15]} e4 {[%emt 0:00:10]} 21. dxe4+ {[%emt 0:00:28]} Ke8 {[%emt 0:00:09]} 22. Nc7+ {[%emt 0:00:25]} Kf7 {[%emt 0:00:06]} 23. exf5 {[%emt 0:00:32]} Kg8 {[%emt 0:00:07]} 24. Bxg4 {[%emt 0:00:21]} Bb7 {[%emt 0:00:10]} 25. Rxe7 {[%emt 0:00:06]} Bxg2 {[%emt 0:00:11]} 26. Nf4 {[%emt 0:00:12]} h5 {[%emt 0:00:14]} 27. Nce6 {[%emt 0:00:07]} a6 {[%emt 0:00:08]} 28. Rxg7+ {[%emt 0:00:05]} Kh8 {[%emt 0:00:25]} 29. Ng6# {[%emt 0:00:04]} 1-0

[Event "GER-ch Youth-U10 2022"]
[Site "Willingen"]
[Date "2022.06.05"]
[Round "2.3"]
[White "Lee, Ho In"]
[Black "Shen, Tingrui"]
[Result "0-1"]
[ECO "B36"]
[WhiteElo "1396"]
[BlackElo "1621"]
[Annotator "NA RC COMBH"]
[PlyCount "118"]
[EventDate "2022.06.05"]
[EventType "swiss"]
[EventRounds "11"]
[EventCountry "GER"]
[SourceTitle "playchess.com"]
[Source "ChessBase"]
[SourceQuality "1"]
[TimeControl "40/4500+30:900+30"]

1. e4 {[%emt 0:00:03]} c5 {[%emt 0:00:18]} 2. Nf3 {[%emt 0:00:19]} Nc6 {[%emt 0:00:27]} 3. d4 {[%emt 0:00:58]} cxd4 {[%emt 0:00:39]} 4. Nxd4 {[%emt 0:00:55]} g6 {[%emt 0:00:55]} 5. c4 {[%emt 0:00:45]} Nf6 {[%emt 0:00:38]} 6. Nc3 {[%emt 0:01:28]} Nxd4 {[%emt 0:01:13]} 7. Qxd4 {[%emt 0:01:46]} d6 {[%emt 0:00:40]} 8. Be3 {[%emt 0:01:54]} Bg7 {[%emt 0:01:40]} 9. Be2 {[%emt 0:02:40]} O-O {[%emt 0:00:43]} 10. Qd1 {[%emt 0:03:28]} Be6 {[%emt 0:02:27]} 11. Rc1 {[%emt 0:06:27]} Rc8 {[%emt 0:03:10]} 12. b3 {[%emt 0:01:07]} a6 {[%emt 0:07:17]} 13. Bd4 {[%emt 0:02:12]} Qa5 {[%emt 0:02:26]} 14. O-O {[%emt 0:06:47]} b5 {[%emt 0:02:31]} 15. cxb5 {[%emt 0:02:12]} axb5 {[%emt 0:00:35]} 16. Bd3 {[%emt 0:05:51]} b4 {[%emt 0:05:11]} 17. Na4 {[%emt 0:01:55]} Nd7 {[%emt 0:01:26]} 18. Bxg7 {[%emt 0:00:33]} Kxg7 {[%emt 0:00:22]} 19. Qd2 {[%emt 0:01:04]} Nc5 {[%emt 0:03:28]} 20. Nxc5 {[%emt 0:00:46]} Rxc5 {[%emt 0:01:36]} 21. Rxc5 {[%emt 0:00:39]} dxc5 {[%emt 0:03:26]} 22. Ra1 {[%emt 0:02:39]} Kg8 {[%emt 0:02:12]} 23. Rc1 {[%emt 0:03:26]} Ra8 {[%emt 0:02:24]} 24. Bb1 {[%emt 0:00:38]} Rc8 {[%emt 0:01:44]} 25. h3 {[%emt 0:03:23]} Qb5 {[%emt 0:02:32]} 26. Qd3 {[%emt 0:07:56]} c4 {[%emt 0:03:44]} 27. bxc4 {[%emt 0:01:00]} Bxc4 {[%emt 0:01:54]} 28. Qd4 {[%emt 0:01:42]} Qa6 {[%emt 0:03:08]} 29. Qd7 {[%emt 0:01:34]} Be6 {[%emt 0:01:16]} 30. Rxc8+ {[%emt 0:00:28]} Qxc8 {[%emt 0:00:12]} 31. Qxc8+ {[%emt 0:00:29]} Bxc8 {[%emt 0:00:14]} 32. Kf1 {[%emt 0:00:12]} Be6 {[%emt 0:01:06]} 33. Ke2 {[%emt 0:00:28]} Bc4+ {[%emt 0:00:16]} 34. Ke3 {[%emt 0:00:37]} e5 {[%emt 0:00:09]} 35. g3 {[%emt 0:00:39]} Kf8 {[%emt 0:00:34]} 36. f4 {[%emt 0:00:21]} f6 {[%emt 0:00:07]} 37. Kf3 {[%emt 0:00:29]} Ke7 {[%emt 0:02:08]} 38. f5 {[%emt 0:01:13]} g5 {[%emt 0:00:18]} 39. h4 {[%emt 0:01:13]} gxh4 {[%emt 0:00:32]} 40. gxh4 {[%emt 0:00:11]} h5 {[%emt 0:00:09]} 41. Ke3 {[%emt 0:15:45]} Kd6 {[%emt 0:15:08]} 42. Kd2 {[%emt 0:00:51]} Kc5 {[%emt 0:00:08]} 43. Ke3 {[%emt 0:00:14]} Kb5 {[%emt 0:00:18]} 44. Kd2 {[%emt 0:01:48]} Ka4 {[%emt 0:00:11]} 45. Kc1 {[%emt 0:02:36]} Ka3 {[%emt 0:00:14]} 46. Kc2 {[%emt 0:00:10]} Bxa2 {[%emt 0:00:09]} 47. Kc1 {[%emt 0:00:25]} Bxb1 {[%emt 0:00:28]} 48. Kxb1 {[%emt 0:00:05]} Kb3 {[%emt 0:00:11]} 49. Kc1 {[%emt 0:00:16]} Ka2 {[%emt 0:00:07]} 50. Kc2 {[%emt 0:00:08]} b3+ {[%emt 0:00:06]} 51. Kc3 {[%emt 0:00:06]} b2 {[%emt 0:00:06]} 52. Kc4 {[%emt 0:00:05]} b1=Q {[%emt 0:00:08]} 53. Kd5 {[%emt 0:00:06]} Qd3+ {[%emt 0:00:06]} 54. Ke6 {[%emt 0:00:08]} Qxe4 {[%emt 0:00:09]} 55. Kxf6 {[%emt 0:00:07]} Qxh4+ {[%emt 0:00:11]} 56. Kxe5 {[%emt 0:00:06]} Qg5 {[%emt 0:00:07]} 57. Ke6 {[%emt 0:00:09]} h4 {[%emt 0:00:14]} 58. f6 {[%emt 0:00:14]} Qxf6+ {[%emt 0:00:04]} 59. Kxf6 {[%emt 0:00:07]} h3 {[%emt 0:00:07]} 0-1

[Event "GER-ch Youth-U10 2022"]
[Site "Willingen"]
[Date "2022.06.05"]
[Round "2.4"]
[White "Zhang, Yibo"]
[Black "Rohatgi, Kushagra"]
[Result "1-0"]
[ECO "B13"]
[WhiteElo "1436"]
[BlackElo "1222"]
[Annotator "NA RC COMBH"]
[PlyCount "111"]
[EventDate "2022.06.05"]
[EventType "swiss"]
[EventRounds "11"]
[EventCountry "GER"]
[SourceTitle "playchess.com"]
[Source "ChessBase"]
[SourceQuality "1"]
[TimeControl "40/4500+30:900+30"]

1. e4 {[%emt 0:00:05]} c6 {[%emt 0:00:04]} 2. d4 {[%emt 0:00:04]} d5 {[%emt 0:00:07]} 3. exd5 {[%emt 0:00:09]} cxd5 {[%emt 0:00:20]} 4. Bd3 {[%emt 0:00:17]} Nc6 {[%emt 0:00:08]} 5. c3 {[%emt 0:00:05]} Nf6 {[%emt 0:00:18]} 6. h3 {[%emt 0:00:32]} h6 {[%emt 0:01:05]} 7. Bf4 {[%emt 0:00:46]} e6 {[%emt 0:00:29]} 8. Nf3 {[%emt 0:01:05]} Bd6 {[%emt 0:00:37]} 9. Ne5 {[%emt 0:01:33]} Bxe5 {[%emt 0:01:22]} 10. dxe5 {[%emt 0:00:46]} Nd7 {[%emt 0:00:55]} 11. Qg4 {[%emt 0:02:36]} Ncxe5 {[%emt 0:08:27]} 12. Bxe5 {[%emt 0:00:50]} Nxe5 {[%emt 0:01:17]} 13. Bb5+ {[%emt 0:00:47]} Bd7 {[%emt 0:03:44]} 14. Qxg7 {[%emt 0:01:01]} Ng6 {[%emt 0:02:32]} 15. Bd3 {[%emt 0:05:31]} Rf8 {[%emt 0:03:21]} 16. Bxg6 {[%emt 0:01:42]} Qg5 {[%emt 0:04:22]} 17. Bxf7+ {[%emt 0:02:09]} Rxf7 {[%emt 0:00:49]} 18. Qxg5 {[%emt 0:00:52]} hxg5 {[%emt 0:00:23]} 19. Nd2 {[%emt 0:01:10]} Bc6 {[%emt 0:02:51]} 20. Nf3 {[%emt 0:02:17]} Rg7 {[%emt 0:06:02]} 21. Ne5 {[%emt 0:04:47]} Bd7 {[%emt 0:03:57]} 22. c4 {[%emt 0:05:32]} dxc4 {[%emt 0:03:15]} 23. Nxc4 {[%emt 0:00:25]} Bc6 {[%emt 0:01:10]} 24. f3 {[%emt 0:02:23]} Bd5 {[%emt 0:01:25]} 25. Ne5 {[%emt 0:01:28]} Rc8 {[%emt 0:03:10]} 26. Kd1 {[%emt 0:06:02]} Rd8 {[%emt 0:03:52]} 27. Ke2 {[%emt 0:04:24]} Rc8 {[%emt 0:04:59]} 28. Rhc1 {[%emt 0:08:27]} Rgc7 {[%emt 0:05:30]} 29. Rxc7 {[%emt 0:01:52]} Rxc7 {[%emt 0:02:49]} 30. Kd2 {[%emt 0:05:57]} b6 {[%emt 0:03:18]} 31. b3 {[%emt 0:00:21]} Rc8 {[%emt 0:01:25]} 32. Rc1 {[%emt 0:01:46]} Rxc1 {[%emt 0:00:59]} 33. Kxc1 {[%emt 0:00:29]} Ke7 {[%emt 0:00:39]} 34. Kd2 {[%emt 0:00:28]} Kf6 {[%emt 0:01:28]} 35. Ng4+ {[%emt 0:00:23]} Ke7 {[%emt 0:01:21]} 36. Kd3 {[%emt 0:00:22]} Kd6 {[%emt 0:00:33]} 37. Kd4 {[%emt 0:01:23]} a6 {[%emt 0:01:41]} 38. Ne5 {[%emt 0:01:56]} Ke7 {[%emt 0:01:11]} 39. Nc4 {[%emt 0:00:47]} Bxc4 {[%emt 0:00:42]} 40. Kxc4 {[%emt 0:00:50]} Kd6 {[%emt 0:00:17]} 41. Kd4 {[%emt 0:15:11]} b5 {[%emt 0:16:07]} 42. b4 {[%emt 0:00:10]} Kc6 {[%emt 0:00:35]} 43. Ke5 {[%emt 0:00:17]} Kd7 {[%emt 0:00:46]} 44. f4 {[%emt 0:00:27]} gxf4 {[%emt 0:00:35]} 45. Kxf4 {[%emt 0:00:04]} Ke7 {[%emt 0:00:16]} 46. Ke5 {[%emt 0:00:09]} Kf7 {[%emt 0:00:20]} 47. g4 {[%emt 0:00:03]} Ke7 {[%emt 0:00:14]} 48. h4 {[%emt 0:00:13]} Kf7 {[%emt 0:00:08]} 49. g5 {[%emt 0:00:05]} Kg6 {[%emt 0:00:16]} 50. Kxe6 {[%emt 0:00:10]} Kg7 {[%emt 0:00:41]} 51. h5 {[%emt 0:00:00]} Kh7 {[%emt 0:00:07]} 52. Kf7 {[%emt 0:00:06]} Kh8 {[%emt 0:00:18]} 53. g6 {[%emt 0:00:11]} a5 {[%emt 0:00:10]} 54. g7+ {[%emt 0:00:06]} Kh7 {[%emt 0:00:24]} 55. g8=Q+ {[%emt 0:00:07]} Kh6 {[%emt 0:00:12]} 56. Qg6# {[%emt 0:00:13]} 1-0

[Event "GER-ch Youth-U10 2022"]
[Site "Willingen"]
[Date "2022.06.05"]
[Round "2.5"]
[White "Vartanian, Roman"]
[Black "Rudolph, Simon"]
[Result "1-0"]
[ECO "D35"]
[WhiteElo "1511"]
[BlackElo "1361"]
[Annotator "NA RC COMBH"]
[PlyCount "27"]
[EventDate "2022.06.05"]
[EventType "swiss"]
[EventRounds "11"]
[EventCountry "GER"]
[SourceTitle "playchess.com"]
[Source "ChessBase"]
[SourceQuality "1"]
[TimeControl "40/4500+30:900+30"]

1. Nf3 {[%emt 0:00:03]} d5 {[%emt 0:00:06]} 2. c4 {[%emt 0:00:07]} Nf6 {[%emt 0:00:12]} 3. cxd5 {[%emt 0:00:04]} Nxd5 {[%emt 0:00:10]} 4. d4 {[%emt 0:00:10]} e6 {[%emt 0:00:11]} 5. Nc3 {[%emt 0:00:09]} Nc6 {[%emt 0:00:29]} 6. e3 {[%emt 0:00:17]} Bb4 {[%emt 0:00:18]} 7. Qc2 {[%emt 0:00:16]} a6 {[%emt 0:01:49]} 8. a3 {[%emt 0:00:23]} Be7 {[%emt 0:00:21]} 9. Bd3 {[%emt 0:00:49]} b5 {[%emt 0:00:45]} 10. Nxd5 {[%emt 0:00:18]} Nxd4 {[%emt 0:00:53]} 11. Nxc7+ {[%emt 0:00:19]} Kd7 {[%emt 0:00:36]} 12. Ne5+ {[%emt 0:03:12]} Kd6 {[%emt 0:00:34]} 13. exd4 {[%emt 0:00:43]} Rf8 {[%emt 0:00:58]} 14. Qc5# {[%emt 0:00:27]} 1-0